Cogmind - Beta 15 @@@ ROGUE MODE // 2025.09.08 @ 03:20:51 Player: konomiyu Result: Destroyed by 46-79A(R) with Subdweller Shrapnel Launcher Performance ------------- Evolutions (0) 0 Regions Visited (2) 400 Robots Destroyed (16) 80 Value Destroyed (445) 445 Prototype IDs (0) 0 Alien Tech Used (0) 0 Bonus (0) 0 TOTAL SCORE: 925 Bonus ------- None Cogmind --------- Core Integrity 0/250 Matter 272/300 Energy 241/250 System Corruption 0% Temperature Cool (0) Movement Walking (260) Ox2 Location -10/Subcaves Parts ------- > --- POWER (1) -------- Ion Engine > --- PROPULSION (2) --- Light Treads Aluminum Leg > --- UTILITY (2) ------ Large Storage Unit > --- WEAPON (2) ------- Small Laser Light Assault Rifle > --- INVENTORY (15) --- Ion Engine Improved Ion Engine Aluminum Leg Heat Sink Disposable Heat Sink Targeting Computer Core Shielding Light Armor Plating EM Pulse Gun Small Laser Light Assault Rifle Light Assault Rifle Subdweller Machine Gun Grenade Launcher Peak State ------------ > --- POWER ------------ Ion Engine > --- PROPULSION ------- Aluminum Leg Aluminum Leg > --- UTILITY ---------- Medium Storage Unit Signal Interpreter > --- WEAPON ----------- Small Laser Light Assault Rifle > --- INVENTORY -------- Ion Engine Light Treads Aluminum Leg Aluminum Leg Terrain Scanner Targeting Computer Light Armor Plating Light Assault Rifle Grenade Launcher Welding Torch [Rating: 8] Favorites ----------- Power Ion Engine Engine Ion Engine Propulsion Aluminum Leg Treads Light Treads Leg Aluminum Leg Utility Signal Interpreter Device Terrain Scanner Storage Large Storage Unit Processor Signal Interpreter Weapon Small Laser Energy Gun Small Laser Ballistic Gun Light Assault Rifle Launcher Grenade Launcher Special Weapon Mining Laser Build | -11 -10 -10 ------- Run | Yrd Mat Sub Slots Evolved . | . . . Power . | . . . Propulsion . | . . . Utility . | . . . Weapon . | . . . Parts Attached 22 | 6 12 4 Power 2 | 1 1 . Engine 2 | 1 1 . Core . | . . . Reactor . | . . . Propulsion 5 | 2 2 1 Treads 1 | . 1 . Leg 4 | 2 1 1 Wheel . | . . . Hover . | . . . Flight . | . . . Utility 5 | 1 4 . Device 1 | . 1 . Storage 3 | 1 2 . Processor 1 | . 1 . Hackware . | . . . Protection . | . . . Artifact . | . . . Weapon 10 | 2 5 3 Energy Gun 3 | 1 2 . Energy Cannon . | . . . Ballistic Gun 4 | 1 2 1 Ballistic Cannon . | . . . Launcher 1 | . . 1 Special Weapon 2 | . 1 1 Impact Weapon . | . . . Slashing Weapon . | . . . Piercing Weapon . | . . . Special Melee Weapon . | . . . Unidentified Prototypes . | . . . Parts Lost 7 | . 3 4 Power . | . . . Propulsion 3 | . 1 2 Utility 1 | . . 1 Weapon 3 | . 2 1 Highest Loss Streak 3 | . 2 3 To Critical Strikes . | . . . Average Backups 9 | 1 8 14 Power 1 | . 1 2 Propulsion 1 | . 1 2 Utility 2 | . 2 4 Weapon 3 | . 2 5 Tool/Special . | . . . Unused Backups 16 | 1 3 12 Power 4 | . 1 3 Propulsion 2 | 1 . 1 Utility 6 | . 1 5 Weapon 3 | . . 3 Tool/Special 1 | . 1 . Average Slot Usage (%) 98 | . 97 100 Engine 14 | . 14 14 Treads 2 | . . 6 Leg 25 | . 27 21 Device 1 | . 2 . Storage 14 | . 14 14 Processor 11 | . 9 14 Energy Gun 17 | . 15 21 Ballistic Gun 10 | . 11 6 Peak Build Rating 8 | 6 8 8 Average Rating 7 | 4 7 7 On Entrance 4 | . 6 8 Naked Turns . | . . . Heaviest Build 27 | 14 27 27 Greatest Support 20 | 20 20 20 Greatest Overweight (x) 2 | . 1 2 Average Overweight (x) . | . . 1 Largest Inventory Capacity 15 | 8 15 15 Average Capacity 11 | 6 10 15 Most Carried 15 | 4 15 15 Average Carried 9 | 1 8 14 Final Capacity 15 | 8 15 15 Final Carried 15 | 2 15 14 Class Distribution -------------------- 100% | Mutant Dominant Class ---------------- Mutant | -10/Materials Mutant | -10/Subcaves Resources | -11 -10 -10 ----------- Run | Yrd Mat Sub Matter Collected 520 | 260 211 49 Remotely . | . . . Salvage Created 443 | . 361 82 Parts 27 | . 21 6 Haulers Intercepted . | . . . Recyclers Shooed 1 | . 1 . Parts Field Recycled . | . . . Retrieved Matter . | . . . Parts Self-Destructed 1 | . . 1 Prevented . | . . . Kills | -11 -10 -10 ------- Run | Yrd Mat Sub Combat Hostiles Destroyed 14 | . 11 3 Guns 12 | . 10 2 Cannons 1 | . 1 . AOE 1 | . . 1 Classes Destroyed 4 | . 3 1 Builder 2 | . 2 . Swarmer 3 | . 3 . Grunt 8 | . 8 . Subdweller 3 | . . 3 Best Kill Streak 4 | . 4 2 Combat Bots Only 3 | . 3 2 Max Kills in Single Turn 2 | . 2 1 Gunslinging . | . . . Exploded 1 | . . 1 Melee . | . . . Uniques/NPCs Destroyed . | . . . Combat | -11 -10 -10 -------- Run | Yrd Mat Sub Hostile Shots Fired 103 | . 66 37 Missed 24 | . 12 12 Hits 79 | . 54 25 Projectile 79 | . 54 25 AOE 2 | . . 2 Critical Strikes 2 | . . 2 Damage Taken 1172 | . 586 586 Core 280 | . 133 147 Absorbed by Shields . | . . . Core Remaining (%) 100 | 100 . . Volleys Fired 50 | . 39 11 Largest 2 | . 2 2 Hottest 150 | . 150 140 Shots Fired 96 | . 74 22 Gun 83 | . 65 18 Cannon . | . . . Launcher 2 | . . 2 Special 11 | . 9 2 Kinetic 46 | . 39 7 Thermal 48 | . 35 13 Explosive 2 | . . 2 Electromagnetic . | . . . Robot Hit Streak 10 | . 10 7 Robot Miss Streak 4 | . 4 1 Penetration Max . | . . . Secondary Targets 2 | . 1 1 Max Gunslinging Chain 1 | . 1 1 Shots Hit Robots 62 | . 46 16 Core Hits 30 | . 22 8 Critical Kills . | . . . Critical Parts Destroyed . | . . . Critical Strikes 2 | . 2 . Burn 2 | . 2 . Melee Attacks . | . . . Impact . | . . . Slashing . | . . . Piercing . | . . . Sneak Attacks . | . . . Combat Hostiles . | . . . Follow-up Attacks . | . . . Damage Inflicted 851 | . 606 245 Guns 647 | . 506 141 Cannons . | . . . Explosions 80 | . . 80 Melee . | . . . Ramming . | . . . Kinetic 372 | . 320 52 Thermal 399 | . 286 113 Explosive 80 | . . 80 Electromagnetic . | . . . Impact . | . . . Slashing . | . . . Piercing . | . . . Highest Corruption . | . . . Average Corruption . | . . . Corruption Purged . | . . . Corruption Blocked . | . . . Overload Shots . | . . . Overflow Damage . | . . . Projectiles . | . . . Explosions . | . . . Melee . | . . . Knockbacks . | . . . Impact . | . . . Kinetic . | . . . Secondary . | . . . Self-Inflicted Damage . | . . . Shots . | . . . Rammed . | . . . Targets Rammed . | . . . Kicked . | . . . Crushed . | . . . Highest Temperature 274 | . 274 . Average Temperature 85 | . 85 . Received Heat Transfer 243 | . 219 24 Siege Activations . | . . . Martial Activations . | . . . Shielding Activations . | . . . Robots Disrupted . | . . . Combat Hostiles . | . . . Robots Corrupted . | . . . Combat Hostiles . | . . . Parts Fried . | . . . Impact Corruptions . | . . . Robots Melted . | . . . Combat Hostiles . | . . . Parts Melted 1 | . 1 . Heat Transferred 1116 | . 866 250 Parts Sabotaged . | . . . Parts Stolen . | . . . Parts Stripped . | . . . Power Chain Reactions . | . . . Alert | -11 -10 -10 ------- Run | Yrd Mat Sub Maximum Alert Level . | . . . Low Security (%) 100 | 100 100 . Level 1 . | . . . Level 2 . | . . . Level 3 . | . . . Level 4 . | . . . Level 5 . | . . . High Security . | . . . Max Security . | . . . Peak Influence 114 | . 114 . Initial . | . . . Average 24 | . 25 . Influence Increases 348 | . 348 . Destroy 0b10 Robot/C 220 | . 220 . Destroy 0b10 Robot/NC 10 | . 10 . Destroy Leader 40 | . 40 . Successful Hack 13 | . 13 . Destroy Structure 5 | . 5 . Lose Combat Pursuer 60 | . 60 . Influence Decreases 348 | . 348 . Time Decay 318 | . 318 . Lost Part 30 | . 30 . Squads Dispatched 3 | . 3 . Investigation 1 | . 1 . Extermination . | . . . Reinforcement 2 | . 2 . Assault . | . . . Garrison . | . . . Intercept . | . . . Searches Triggered . | . . . Construction Impeded . | . . . Haulers Reinforced . | . . . Active Scanning Responses . | . . . Cargo Convoy Interrupts . | . . . Stealth | -11 -10 -10 --------- Run | Yrd Mat Sub Distress Signals 1 | . 1 . Communications Jammed . | . . . Distress Signals . | . . . Times Spotted 25 | . 19 6 Peak Tracking Total 3 | . 3 3 Tactical Retreats 3 | . 3 . Traps | -11 -10 -10 ------- Run | Yrd Mat Sub Traps Triggered 1 | . 1 . Indirectly . | . . . Trap Hack Attempts . | . . . Triggered . | . . . Disarmed . | . . . Reprogrammed . | . . . Reused . | . . . Traps Extracted . | . . . Installed . | . . . Triggered . | . . . Machines | -11 -10 -10 ---------- Run | Yrd Mat Sub Machines Disabled . | . . . Max in Single Turn . | . . . Machines Repaired . | . . . Machines Dismantled . | . . . Machines Sabotaged . | . . . Overloaded Fab Kills . | . . . Hacking | -11 -10 -10 --------- Run | Yrd Mat Sub Machines Accessed 7 | . 7 . Terminals 6 | . 6 . Fabricators . | . . . Repair Stations . | . . . Recycling Units 1 | . 1 . Scanalyzers . | . . . Garrison Access . | . . . Total Hacks 13 | . 13 . Successful 5 | . 5 . Failed 8 | . 8 . Catastrophic 2 | . 2 . Database Lockouts . | . . . Manual 10 | . 10 . Terminals 12 | . 12 . Fabricators . | . . . Repair Stations . | . . . Recycling Units 1 | . 1 . Scanalyzers . | . . . Garrison Access . | . . . Terminal Hacks 4 | . 4 . Robot Analysis 3 | . 3 . Recall Investigation 1 | . 1 . Fabricator Hacks . | . . . Repair Station Hacks . | . . . Recycling Unit Hacks 1 | . 1 . Retrieve Components 1 | . 1 . Scanalyzer . | . . . Garrison Access Hacks . | . . . Unauthorized Hacks . | . . . Terminals . | . . . Fabricators . | . . . Repair Stations . | . . . Recycling Units . | . . . Scanalyzers . | . . . Garrison Access . | . . . Data Cores Recovered . | . . . Used . | . . . Hacking Detections 6 | . 6 . Full Trace Events . | . . . Feedback Events . | . . . Feedback Blocked . | . . . Robot Schematics Acquired . | . . . Robots Built . | . . . Authchips . | . . . Time . | . . . Total Robot Build Rating . | . . . Part Schematics Acquired . | . . . Parts Built . | . . . Authchips . | . . . Time . | . . . Total Part Build Rating . | . . . Parts Repaired . | . . . Time . | . . . Parts Recycled . | . . . Recycled Matter . | . . . Retrieved Matter . | . . . Retrieved Components 9 | . 9 . Parts Scanalyzed . | . . . Part Schematics Acquired . | . . . Parts Damaged . | . . . Bothacking | -11 -10 -10 ------------ Run | Yrd Mat Sub Used RIF Installer . | . . . Robots Hacked . | . . . Non-combat . | . . . Combat . | . . . Robot Hacks Applied . | . . . Relay Couplers Released . | . . . Fabnet Peak Effective % . | . . . Robots Rewired . | . . . Allies Hacked . | . . . Hacks Repelled . | . . . Allies | -11 -10 -10 -------- Run | Yrd Mat Sub Total Allies . | . . . Largest Group . | . . . Highest-Rated Group . | . . . Highest-Rated Ally . | . . . Total Orders . | . . . Ally Attacks . | . . . Total Damage . | . . . Kills . | . . . Allies Corrupted . | . . . Allies Melted . | . . . Intel | -11 -10 -10 ------- Run | Yrd Mat Sub Active Infowar (turns) 265 | . 265 . Terrain 265 | . 265 . Robot Analysis Total 3 | . 3 . Derelict Logs Recovered 2 | . . 2 Drone Launches . | . . . Drone Recoveries . | . . . Exploration | -11 -10 -10 ------------- Run | Yrd Mat Sub Turns Passed 2417 | 78 1669 670 Spaces Moved 1321 | 60 978 283 Core 13 | 13 . . Treads 2 | . 2 . Legs 1306 | 47 976 283 Wheels . | . . . Hover . | . . . Flight . | . . . Fastest Speed 50 | 50 120 190 Average Speed 154 | 104 139 217 Slowest Speed 260 | 120 190 260 Overloaded Moves . | . . . Propulsion Burnouts . | . . . Robots Hopped . | . . . Potential Cave-ins . | . . . Cave-ins Triggered . | . . . Exploration Rate (%) 39 | 4 97 16 Regions Visited 2 Branch Regions 1 Pre-discovered Areas . | . . . Known Exits Taken 1 | . 1 . Unknown Exits Taken 1 | 1 . . Scrap Searched . | . . . Spaces Dug . | . . . Terrain Destroyed 16 | . 4 12 Melee . | . . . Projectile 4 | . 4 . AOE 12 | . . 12 Terrain Rammed . | . . . Walls Destroyed . | . . . Machines Disabled . | . . . Actions | -11 -10 -10 --------- Run | Yrd Mat Sub Total 1592 | 75 1203 314 Wait 146 | . 137 9 Move 1319 | 59 977 283 Hop . | . . . Pick Up 36 | 9 24 3 Fast Attach . | . . . Attach 13 | 6 4 3 Detach . | . . . Swap 15 | . 11 4 Drop 13 | 1 11 1 Fire 50 | . 39 11 Melee . | . . . Ram . | . . . Kick . | . . . Crush . | . . . Escape Stasis . | . . . Rewire . | . . . Trap . | . . . Miscellaneous . | . . . Route ------- -11/Scrapyard -10/Materials (discovered 6 exits: *Mat x3 / *Min x2 / *Sub) -10/Subcaves (discovered 2 exits: *Mat / [Scr]) History --------- Turn | Location | Event 6 | -11/Scrapyard | Discovered new exit (range 14) 79 | -11/Scrapyard | Entered Materials 80 | -10/Materials | Met a group of wandering Federalists 324 | -10/Materials | Build established: Mutant 599 | -10/Materials | Discovered new exit (range 3) 604 | -10/Materials | Identified exit to Materials 716 | -10/Materials | Discovered exit to Materials (range 16) 861 | -10/Materials | Core integrity fell below 50% 963 | -10/Materials | Discovered exit to Materials (range 12) 969 | -10/Materials | Discovered new exit (range 8) 978 | -10/Materials | Identified exit to Subcaves 1082 | -10/Materials | Discovered new exit (range 15) 1123 | -10/Materials | Identified exit to Mines 1414 | -10/Materials | Discovered exit to Mines (range 8) 1748 | -10/Materials | Entered Subcaves 1749 | -10/Subcaves | Continued accompanying wandering Federalists (4) 1765 | -10/Subcaves | Discovered new exit (range 7) 1775 | -10/Subcaves | Identified exit to Materials 1836 | -10/Subcaves | Learned Materials stockpile data 1838 | -10/Subcaves | Learned Materials garrison access intel 2114 | -10/Subcaves | Core integrity fell below 20% 2151 | -10/Subcaves | Lost 3 parts (2n1w) 2418 | -10/Subcaves | Destroyed by 46-79A(R) with Subdweller Shrapnel Launcher Last Messages --------------- wait up! Finally some friendlies. We were scared out of our wits watching Subs pass by here several times." 02007_ I5-6S4(R) destroyed. 02012_ Subatomizers dissect the Disposable Heat Sink. 02101_ Aluminum Leg destroyed. 02103_ Mining Laser destroyed. 02115_ 5B-191(R) destroyed. 02115_ Switching to secondary target: 1G-KOA(R). 02120_ Aluminum Leg destroyed. 02121_ Subatomizers dissect the Sub. Optics. 02122_ 1G-KOA(R) destroyed. 02125_ Acquired 13 matter. 02130_ Acquired Sub. Machine Gun. 02131_ Acquired 36 matter. 02133_ Subatomizers dissect the Sub. Optics. 02136_ Acquired Disposable Heat Sink. 02147_ Subatomizers dissect the Sub. Optics. 02416_ Signal Interpreter destroyed. Map ----- +----------------------------------------------------+ | | | | | | | | | | | | | ?????????????????????????????????????????????????? | | ?????????????????????????????????????????????????? | | ?????????????????????????????????????????????????? | | ?????????????????????????????????????????????????? | | ?????????????????????????????????????????????????? | | ?????????????????????????????????????????????????? | | ?????????????????????????????????????????????????? | | ?????????????????????????????????????????????????? | | ?????????????????????????????????????????????????? | | ?????????????????????????????????????????????????? | | ?????????????????????????????????????????????????? | | ?????????????????????????????????????????????????? | | ??????????????????????????#??##??????????????????? | | ????????????????????????##